[Event "Late-Titled-Tuesday-Blitz-April-23-2024"]
[Site "Chess.com"]
[Date "2024.04.23"]
[Round "9"]
[White "Onischuk_V"]
[Black "BogdanDeac"]
[Result "0-1"]
[WhiteElo "2838"]
[BlackElo "3046"]
[TimeControl "180+1"]
[EndTime "15:46:30 PDT"]
[Termination "BogdanDeac won on time"]

1. e4 {[%clk 0:03:00.9]} 1... e5 {[%clk 0:03:00.3]} 2. Nf3 {[%clk 0:03:00.2]}
2... Nc6 {[%clk 0:03:01]} 3. Bb5 {[%clk 0:02:57.1]} 3... a6 {[%clk 0:03:00.7]}
4. Ba4 {[%clk 0:02:57.1]} 4... Nf6 {[%clk 0:03:01.3]} 5. O-O {[%clk 0:02:56.8]}
5... Nxe4 {[%clk 0:03:01.9]} 6. d4 {[%clk 0:02:56.1]} 6... b5 {[%clk 0:03:02.2]}
7. Bb3 {[%clk 0:02:56]} 7... d5 {[%clk 0:03:02.8]} 8. dxe5 {[%clk 0:02:55.9]}
8... Be6 {[%clk 0:03:02.7]} 9. c3 {[%clk 0:02:52.1]} 9... Bc5 {[%clk 0:02:59.5]}
10. Qe2 {[%clk 0:02:42.3]} 10... O-O {[%clk 0:02:53.7]} 11. Nbd2 {[%clk
0:02:41]} 11... Bf5 {[%clk 0:02:40.6]} 12. Nxe4 {[%clk 0:02:10]} 12... dxe4
{[%clk 0:02:03.4]} 13. Ng5 {[%clk 0:02:08.6]} 13... Qd3 {[%clk 0:00:48.7]} 14.
Qxd3 {[%clk 0:01:51.8]} 14... exd3 {[%clk 0:00:48]} 15. e6 {[%clk 0:01:30]}
15... fxe6 {[%clk 0:00:32.6]} 16. Nxe6 {[%clk 0:00:59]} 16... Bxe6 {[%clk
0:00:32.3]} 17. Bxe6+ {[%clk 0:00:59.1]} 17... Kh8 {[%clk 0:00:32.4]} 18. Bd5
{[%clk 0:00:58.4]} 18... Rad8 {[%clk 0:00:16.8]} 19. Bxc6 {[%clk 0:00:51.6]}
19... d2 {[%clk 0:00:17.1]} 20. Bxd2 {[%clk 0:00:33.7]} 20... Rxd2 {[%clk
0:00:16.3]} 21. Bf3 {[%clk 0:00:34.2]} 21... Rxb2 {[%clk 0:00:16.3]} 22. a4
{[%clk 0:00:34.4]} 22... Rd8 {[%clk 0:00:09.7]} 23. axb5 {[%clk 0:00:32]} 23...
axb5 {[%clk 0:00:10.6]} 24. h3 {[%clk 0:00:15.7]} 24... g6 {[%clk 0:00:09.7]}
25. Rab1 {[%clk 0:00:09.9]} 25... Bxf2+ {[%clk 0:00:06.9]} 26. Kh2 {[%clk
0:00:10.2]} 26... Rdd2 {[%clk 0:00:06.6]} 27. Rxb2 {[%clk 0:00:09.5]} 27... Rxb2
{[%clk 0:00:07.5]} 28. Rd1 {[%clk 0:00:09.5]} 28... Bc5 {[%clk 0:00:06.3]} 29.
Rd8+ {[%clk 0:00:09]} 29... Kg7 {[%clk 0:00:06.6]} 30. Rd7+ {[%clk 0:00:09]}
30... Kf6 {[%clk 0:00:06.6]} 31. Kg3 {[%clk 0:00:07.6]} 31... Bd6+ {[%clk
0:00:06.4]} 32. Kg4 {[%clk 0:00:07.4]} 32... h5+ {[%clk 0:00:06.7]} 33. Kh4
{[%clk 0:00:07.6]} 33... Rc2 {[%clk 0:00:05.8]} 34. Bd5 {[%clk 0:00:04.4]} 34...
Rxc3 {[%clk 0:00:05]} 35. Rf7+ {[%clk 0:00:04.9]} 35... Ke5 {[%clk 0:00:05.6]}
36. Bf3 {[%clk 0:00:04.8]} 36... b4 {[%clk 0:00:05.5]} 37. Kg5 {[%clk
0:00:04.5]} 37... b3 {[%clk 0:00:05.5]} 38. Kxg6 {[%clk 0:00:04.7]} 38... b2
{[%clk 0:00:05.7]} 39. Rf5+ {[%clk 0:00:05]} 39... Kd4 {[%clk 0:00:05.3]} 40.
Rb5 {[%clk 0:00:05.2]} 40... Ba3 {[%clk 0:00:04.3]} 41. Bxh5 {[%clk 0:00:02.4]}
41... Rc1 {[%clk 0:00:04.5]} 0-1

[Event "Late-Titled-Tuesday-Blitz-April-23-2024"]
[Site "Chess.com"]
[Date "2024.04.23"]
[Round "9"]
[White "Bykov_Egor"]
[Black "dosto07"]
[Result "1-0"]
[WhiteElo "2615"]
[BlackElo "2493"]
[TimeControl "180+1"]
[EndTime "15:46:32 PDT"]
[Termination "Bykov_Egor won by resignation"]

1. d4 {[%clk 0:03:00.9]} 1... d5 {[%clk 0:02:59.7]} 2. c4 {[%clk 0:03:01.1]}
2... dxc4 {[%clk 0:03:00.6]} 3. Nf3 {[%clk 0:03:01]} 3... Nf6 {[%clk 0:03:00.9]}
4. e3 {[%clk 0:03:01.6]} 4... e6 {[%clk 0:03:01.4]} 5. Bxc4 {[%clk 0:03:01.7]}
5... a6 {[%clk 0:03:02.1]} 6. O-O {[%clk 0:02:49.7]} 6... c5 {[%clk 0:03:01.9]}
7. Qe2 {[%clk 0:02:39.2]} 7... Nc6 {[%clk 0:02:59.1]} 8. dxc5 {[%clk 0:02:35.1]}
8... Bxc5 {[%clk 0:02:58.4]} 9. Rd1 {[%clk 0:02:35]} 9... Qc7 {[%clk 0:02:58.4]}
10. a3 {[%clk 0:02:17.8]} 10... O-O {[%clk 0:02:58.1]} 11. b4 {[%clk 0:02:16.7]}
11... Ba7 {[%clk 0:02:55.7]} 12. Bb2 {[%clk 0:02:14.5]} 12... e5 {[%clk
0:02:55.7]} 13. h3 {[%clk 0:02:04.1]} 13... Bf5 {[%clk 0:02:39.3]} 14. Nbd2
{[%clk 0:02:00.3]} 14... e4 {[%clk 0:02:30.9]} 15. Bxf6 {[%clk 0:01:47]} 15...
gxf6 {[%clk 0:02:16.4]} 16. Nh4 {[%clk 0:01:45.1]} 16... Qe5 {[%clk 0:02:06.1]}
17. Nxf5 {[%clk 0:01:35.7]} 17... Qxf5 {[%clk 0:02:05.9]} 18. Qg4+ {[%clk
0:01:28.6]} 18... Qxg4 {[%clk 0:02:05.2]} 19. hxg4 {[%clk 0:01:29.5]} 19... Ne5
{[%clk 0:01:56.9]} 20. Be2 {[%clk 0:01:28.1]} 20... Rfe8 {[%clk 0:01:48.4]} 21.
Nxe4 {[%clk 0:01:17.4]} 21... Nxg4 {[%clk 0:01:47.2]} 22. Nd6 {[%clk 0:01:17.3]}
22... Nxf2 {[%clk 0:01:38.6]} 23. Nxe8 {[%clk 0:01:13.9]} 23... Nxd1 {[%clk
0:01:37.7]} 24. Nxf6+ {[%clk 0:01:14.5]} 24... Kg7 {[%clk 0:01:37.6]} 25. Nh5+
{[%clk 0:01:14.7]} 25... Kh6 {[%clk 0:01:37.6]} 26. Rxd1 {[%clk 0:01:15.3]}
26... Bxe3+ {[%clk 0:01:37.4]} 27. Kf1 {[%clk 0:01:12.6]} 27... Rc8 {[%clk
0:01:37.8]} 28. Nf6 {[%clk 0:01:09.7]} 28... Kg5 {[%clk 0:01:31.8]} 29. Nd5
{[%clk 0:01:05.9]} 29... Bc1 {[%clk 0:01:27]} 30. a4 {[%clk 0:01:01.6]} 30... f5
{[%clk 0:01:25.7]} 31. g3 {[%clk 0:01:00.8]} 31... Ba3 {[%clk 0:01:18.6]} 32.
Kf2 {[%clk 0:00:53.1]} 32... Rc2 {[%clk 0:01:17.5]} 33. Kf3 {[%clk 0:00:50.4]}
33... Rb2 {[%clk 0:01:16.4]} 34. b5 {[%clk 0:00:49.6]} 34... Rb3+ {[%clk
0:01:14.5]} 35. Rd3 {[%clk 0:00:49.2]} 35... Rxd3+ {[%clk 0:01:08.7]} 36. Bxd3
{[%clk 0:00:50.1]} 36... axb5 {[%clk 0:01:09.2]} 37. axb5 {[%clk 0:00:46]} 37...
Bc5 {[%clk 0:01:08.5]} 38. Nf4 {[%clk 0:00:39.4]} 38... Kf6 {[%clk 0:01:05.1]}
39. Bc4 {[%clk 0:00:32.5]} 39... b6 {[%clk 0:01:01.5]} 40. Bg8 {[%clk
0:00:32.3]} 40... h6 {[%clk 0:00:58.6]} 41. Bd5 {[%clk 0:00:32.8]} 41... Bd6
{[%clk 0:00:56]} 42. Bc6 {[%clk 0:00:33.4]} 42... Ke5 {[%clk 0:00:54.8]} 43. Nd5
{[%clk 0:00:27.5]} 43... Bc5 {[%clk 0:00:54.8]} 44. Ne3 {[%clk 0:00:26.4]} 44...
Bd4 {[%clk 0:00:52.6]} 45. Ng2 {[%clk 0:00:25.3]} 45... Kf6 {[%clk 0:00:49.9]}
46. Nh4 {[%clk 0:00:25.4]} 46... Kg5 {[%clk 0:00:47.7]} 47. Ng2 {[%clk
0:00:22.5]} 47... Bc5 {[%clk 0:00:46.8]} 48. Bd7 {[%clk 0:00:23]} 48... h5
{[%clk 0:00:43.3]} 49. Ne3 {[%clk 0:00:21.4]} 49... Bxe3 {[%clk 0:00:39.1]} 50.
Kxe3 {[%clk 0:00:22.3]} 50... Kg4 {[%clk 0:00:37.9]} 51. Kf2 {[%clk 0:00:22.5]}
51... Kg5 {[%clk 0:00:34.7]} 52. Kf3 {[%clk 0:00:23]} 52... h4 {[%clk
0:00:29.1]} 53. gxh4+ {[%clk 0:00:22.8]} 53... Kxh4 {[%clk 0:00:30]} 54. Bxf5
{[%clk 0:00:22.4]} 54... Kg5 {[%clk 0:00:29.9]} 55. Ke4 {[%clk 0:00:22.4]} 55...
Kf6 {[%clk 0:00:30.8]} 56. Bh3 {[%clk 0:00:20.6]} 56... Ke7 {[%clk 0:00:31]} 57.
Kd5 {[%clk 0:00:21.4]} 57... Kd8 {[%clk 0:00:31.3]} 58. Kc6 {[%clk 0:00:22]}
58... Ke7 {[%clk 0:00:31.2]} 59. Kxb6 {[%clk 0:00:22.4]} 1-0

[Event "Late-Titled-Tuesday-Blitz-April-23-2024"]
[Site "Chess.com"]
[Date "2024.04.23"]
[Round "9"]
[White "CarlosjPineror"]
[Black "BabageldiAnnaberdiyev"]
[Result "1/2-1/2"]
[WhiteElo "2758"]
[BlackElo "2608"]
[TimeControl "180+1"]
[EndTime "15:46:36 PDT"]
[Termination "Game drawn by stalemate"]

1. e4 {[%clk 0:03:00.9]} 1... e6 {[%clk 0:03:00.2]} 2. d3 {[%clk 0:03:00.4]}
2... d5 {[%clk 0:03:00.8]} 3. Nd2 {[%clk 0:03:01.2]} 3... Nf6 {[%clk 0:03:01]}
4. Ngf3 {[%clk 0:02:58.5]} 4... Nc6 {[%clk 0:03:01.1]} 5. c3 {[%clk 0:02:57.9]}
5... dxe4 {[%clk 0:03:00.8]} 6. dxe4 {[%clk 0:02:57.7]} 6... e5 {[%clk
0:03:01.3]} 7. a4 {[%clk 0:02:55.8]} 7... a5 {[%clk 0:03:00.4]} 8. Bc4 {[%clk
0:02:56.1]} 8... Bc5 {[%clk 0:03:00.4]} 9. O-O {[%clk 0:02:55.3]} 9... O-O
{[%clk 0:03:00.9]} 10. h3 {[%clk 0:02:54.5]} 10... h6 {[%clk 0:02:58.9]} 11. Qe2
{[%clk 0:02:54.4]} 11... Qe7 {[%clk 0:02:58.7]} 12. Nh4 {[%clk 0:02:50.7]} 12...
Be6 {[%clk 0:02:55.7]} 13. Nf5 {[%clk 0:02:46.5]} 13... Bxf5 {[%clk 0:02:55.9]}
14. exf5 {[%clk 0:02:47.4]} 14... e4 {[%clk 0:02:55.5]} 15. Nb3 {[%clk
0:02:23.7]} 15... Bd6 {[%clk 0:02:50.4]} 16. f4 {[%clk 0:02:05.1]} 16... exf3
{[%clk 0:02:39.1]} 17. Qxf3 {[%clk 0:02:04.1]} 17... Ne5 {[%clk 0:02:35.5]} 18.
Qe2 {[%clk 0:02:02.5]} 18... Nxc4 {[%clk 0:02:35.3]} 19. Qxc4 {[%clk 0:02:03.4]}
19... c6 {[%clk 0:02:27]} 20. Bf4 {[%clk 0:01:59.7]} 20... Bxf4 {[%clk
0:02:25.3]} 21. Qxf4 {[%clk 0:02:00.6]} 21... Nd5 {[%clk 0:02:24.8]} 22. Qg3
{[%clk 0:01:58]} 22... Rfe8 {[%clk 0:02:05.1]} 23. Rae1 {[%clk 0:01:43.5]} 23...
Qf6 {[%clk 0:02:03]} 24. Rxe8+ {[%clk 0:01:44.4]} 24... Rxe8 {[%clk 0:02:01.2]}
25. Nxa5 {[%clk 0:01:41.5]} 25... Re2 {[%clk 0:01:57.3]} 26. Rf2 {[%clk
0:01:37.5]} 26... Re1+ {[%clk 0:01:53.6]} 27. Kh2 {[%clk 0:01:36.4]} 27... Ne3
{[%clk 0:01:52.8]} 28. Qf4 {[%clk 0:01:33.2]} 28... b5 {[%clk 0:01:25.6]} 29.
Rf3 {[%clk 0:01:29.1]} 29... Nd5 {[%clk 0:01:15.5]} 30. Qd4 {[%clk 0:01:25.9]}
30... Qxd4 {[%clk 0:01:02.7]} 31. cxd4 {[%clk 0:01:26.8]} 31... bxa4 {[%clk
0:01:03]} 32. Nxc6 {[%clk 0:01:26.9]} 32... Re2 {[%clk 0:01:02.2]} 33. Ra3
{[%clk 0:01:24]} 33... Rxb2 {[%clk 0:00:59.4]} 34. Rxa4 {[%clk 0:01:24.2]} 34...
Nf4 {[%clk 0:01:00]} 35. Ra8+ {[%clk 0:01:21.1]} 35... Kh7 {[%clk 0:00:59.4]}
36. Kg3 {[%clk 0:01:19.5]} 36... Nxg2 {[%clk 0:00:57.6]} 37. Re8 {[%clk
0:01:09.9]} 37... g5 {[%clk 0:00:49.8]} 38. fxg6+ {[%clk 0:01:04.6]} 38... fxg6
{[%clk 0:00:50.7]} 39. Re7+ {[%clk 0:01:01.8]} 39... Kg8 {[%clk 0:00:48.6]} 40.
h4 {[%clk 0:01:01.9]} 40... g5 {[%clk 0:00:47.2]} 41. hxg5 {[%clk 0:00:57.7]}
41... hxg5 {[%clk 0:00:48.1]} 42. Re5 {[%clk 0:00:58.3]} 42... Kf7 {[%clk
0:00:43.9]} 43. Rxg5 {[%clk 0:00:52.2]} 43... Ne3 {[%clk 0:00:43.9]} 44. Kf4
{[%clk 0:00:50]} 44... Nc4 {[%clk 0:00:43.5]} 45. Ne5+ {[%clk 0:00:46.8]} 45...
Nxe5 {[%clk 0:00:43.3]} 46. Rxe5 {[%clk 0:00:46.3]} 46... Rb6 {[%clk 0:00:27.5]}
47. Ke4 {[%clk 0:00:43.8]} 47... Ra6 {[%clk 0:00:27.9]} 48. Kd3 {[%clk
0:00:43.4]} 48... Ra4 {[%clk 0:00:24.4]} 49. Kc3 {[%clk 0:00:43]} 49... Kf6
{[%clk 0:00:23.9]} 50. Re4 {[%clk 0:00:43.4]} 50... Kf5 {[%clk 0:00:20.9]} 51.
Re3 {[%clk 0:00:42.6]} 51... Ra3+ {[%clk 0:00:19.6]} 52. Kd2 {[%clk 0:00:42.8]}
52... Rxe3 {[%clk 0:00:20.5]} 53. Kxe3 {[%clk 0:00:43.7]} 53... Ke6 {[%clk
0:00:20.7]} 54. Kd3 {[%clk 0:00:43.4]} 54... Kd5 {[%clk 0:00:20.7]} 55. Kc3
{[%clk 0:00:44.3]} 55... Kd6 {[%clk 0:00:21.2]} 56. Kd3 {[%clk 0:00:45]} 56...
Kd5 {[%clk 0:00:21.5]} 57. Ke3 {[%clk 0:00:45.6]} 57... Kd6 {[%clk 0:00:22.4]}
58. Ke4 {[%clk 0:00:46.5]} 58... Ke6 {[%clk 0:00:22.1]} 59. d5+ {[%clk
0:00:47.4]} 59... Kd6 {[%clk 0:00:22.6]} 60. Kd4 {[%clk 0:00:48.3]} 60... Kd7
{[%clk 0:00:23.1]} 61. Kc4 {[%clk 0:00:49.2]} 61... Kd6 {[%clk 0:00:23.4]} 62.
Kd4 {[%clk 0:00:50.1]} 62... Kd7 {[%clk 0:00:24.3]} 63. Ke5 {[%clk 0:00:51]}
63... Ke7 {[%clk 0:00:24.7]} 64. Kf5 {[%clk 0:00:50.8]} 64... Kd6 {[%clk
0:00:24.7]} 65. Ke4 {[%clk 0:00:51.7]} 65... Kd7 {[%clk 0:00:25.3]} 66. Ke5
{[%clk 0:00:52.4]} 66... Ke7 {[%clk 0:00:25.7]} 67. d6+ {[%clk 0:00:53.3]} 67...
Kd7 {[%clk 0:00:26]} 68. Kd5 {[%clk 0:00:54.2]} 68... Kd8 {[%clk 0:00:26.4]} 69.
Ke6 {[%clk 0:00:55.1]} 69... Ke8 {[%clk 0:00:26.6]} 70. Kf6 {[%clk 0:00:56]}
70... Kd7 {[%clk 0:00:27.5]} 71. Ke5 {[%clk 0:00:56.8]} 71... Kd8 {[%clk
0:00:27.7]} 72. Kf5 {[%clk 0:00:57.3]} 72... Kd7 {[%clk 0:00:28.1]} 73. Ke5
{[%clk 0:00:57.9]} 73... Kd8 {[%clk 0:00:28.7]} 74. Ke6 {[%clk 0:00:58.8]} 74...
Ke8 {[%clk 0:00:29.1]} 75. Kd5 {[%clk 0:00:59.7]} 75... Kd7 {[%clk 0:00:29.3]}
76. Kc5 {[%clk 0:01:00.6]} 76... Kd8 {[%clk 0:00:28.9]} 77. Kb6 {[%clk
0:01:01.5]} 77... Kd7 {[%clk 0:00:29.1]} 78. Kc5 {[%clk 0:01:01.8]} 78... Kd8
{[%clk 0:00:29.1]} 79. Kc6 {[%clk 0:01:02.7]} 79... Kc8 {[%clk 0:00:29.2]} 80.
d7+ {[%clk 0:01:02.3]} 80... Kd8 {[%clk 0:00:29]} 81. Kd6 {[%clk 0:01:03.2]}
1/2-1/2

[Event "Late-Titled-Tuesday-Blitz-April-23-2024"]
[Site "Chess.com"]
[Date "2024.04.23"]
[Round "9"]
[White "jinbojinbo"]
[Black "elmusmolamas"]
[Result "0-1"]
[WhiteElo "2616"]
[BlackElo "2521"]
[TimeControl "180+1"]
[EndTime "15:46:37 PDT"]
[Termination "elmusmolamas won on time"]

1. c4 {[%clk 0:03:00.9]} 1... b6 {[%clk 0:02:56.3]} 2. Nc3 {[%clk 0:03:00.4]}
2... Bb7 {[%clk 0:02:56.3]} 3. d4 {[%clk 0:02:57.2]} 3... e6 {[%clk 0:02:56.5]}
4. e4 {[%clk 0:02:56.9]} 4... Bb4 {[%clk 0:02:56.3]} 5. f3 {[%clk 0:02:53.7]}
5... Bxc3+ {[%clk 0:02:34.3]} 6. bxc3 {[%clk 0:02:54.6]} 6... Qh4+ {[%clk
0:02:34.8]} 7. g3 {[%clk 0:02:53.2]} 7... Qe7 {[%clk 0:02:35.5]} 8. Bd3 {[%clk
0:02:50.7]} 8... d6 {[%clk 0:02:34.6]} 9. Ne2 {[%clk 0:02:50]} 9... Nd7 {[%clk
0:02:35.3]} 10. Be3 {[%clk 0:02:46.9]} 10... Ngf6 {[%clk 0:02:34.9]} 11. g4
{[%clk 0:02:45.9]} 11... O-O-O {[%clk 0:02:24]} 12. Ng3 {[%clk 0:02:42]} 12...
h5 {[%clk 0:02:19.5]} 13. g5 {[%clk 0:02:41.5]} 13... Ne8 {[%clk 0:02:19.1]} 14.
h4 {[%clk 0:02:36.6]} 14... d5 {[%clk 0:02:17.2]} 15. cxd5 {[%clk 0:02:26.9]}
15... exd5 {[%clk 0:02:18.1]} 16. Qa4 {[%clk 0:02:23.4]} 16... Kb8 {[%clk
0:01:55.9]} 17. O-O-O {[%clk 0:02:21.3]} 17... dxe4 {[%clk 0:01:52.9]} 18. fxe4
{[%clk 0:02:15.9]} 18... Qe6 {[%clk 0:01:53.2]} 19. Rhg1 {[%clk 0:01:51.6]}
19... g6 {[%clk 0:01:53.1]} 20. e5 {[%clk 0:01:46.2]} 20... Qg4 {[%clk
0:01:48.7]} 21. Bb5 {[%clk 0:01:38.5]} 21... a6 {[%clk 0:01:16.7]} 22. Bxa6
{[%clk 0:01:37.8]} 22... Nxe5 {[%clk 0:01:17.2]} 23. Bxb7 {[%clk 0:01:30.4]}
23... Kxb7 {[%clk 0:01:15.9]} 24. Nxh5 {[%clk 0:00:29.7]} 24... Qe4 {[%clk
0:00:59.5]} 25. Bf4 {[%clk 0:00:21.2]} 25... Nd3+ {[%clk 0:00:55.7]} 26. Rxd3
{[%clk 0:00:20.5]} 26... Qxd3 {[%clk 0:00:56.6]} 27. Ng3 {[%clk 0:00:16.9]}
27... Qxc3+ {[%clk 0:00:50]} 28. Kb1 {[%clk 0:00:16.8]} 28... Qd3+ {[%clk
0:00:50.4]} 29. Ka1 {[%clk 0:00:16.5]} 29... Qxd4+ {[%clk 0:00:49.4]} 30. Qxd4
{[%clk 0:00:16.3]} 30... Rxd4 {[%clk 0:00:50.3]} 31. Be5 {[%clk 0:00:16.8]}
31... Rhxh4 {[%clk 0:00:44.3]} 32. Bxd4 {[%clk 0:00:16.7]} 32... Rxd4 {[%clk
0:00:45.2]} 33. Re1 {[%clk 0:00:15.1]} 33... Nd6 {[%clk 0:00:43.6]} 34. Kb1
{[%clk 0:00:13.8]} 34... Rg4 {[%clk 0:00:41.5]} 35. Ne2 {[%clk 0:00:13.9]} 35...
Rxg5 {[%clk 0:00:29.2]} 36. Nc3 {[%clk 0:00:14]} 36... Rc5 {[%clk 0:00:27.2]}
37. Kb2 {[%clk 0:00:12.9]} 37... g5 {[%clk 0:00:22.5]} 38. Re7 {[%clk 0:00:12]}
38... f5 {[%clk 0:00:21.4]} 39. Rg7 {[%clk 0:00:11.5]} 39... f4 {[%clk
0:00:21.5]} 40. Kb3 {[%clk 0:00:10.1]} 40... f3 {[%clk 0:00:21]} 41. Nd1 {[%clk
0:00:09.3]} 41... Ne4 {[%clk 0:00:16]} 42. Re7 {[%clk 0:00:08.2]} 42... f2
{[%clk 0:00:15.3]} 43. Rf7 {[%clk 0:00:08.3]} 43... Rc1 {[%clk 0:00:10]} 0-1

[Event "Late-Titled-Tuesday-Blitz-April-23-2024"]
[Site "Chess.com"]
[Date "2024.04.23"]
[Round "9"]
[White "Sanyura"]
[Black "Vladimir_2020"]
[Result "1-0"]
[WhiteElo "2653"]
[BlackElo "2754"]
[TimeControl "180+1"]
[EndTime "15:46:39 PDT"]
[Termination "Sanyura won on time"]

1. e4 {[%clk 0:03:00.9]} 1... e5 {[%clk 0:02:59.2]} 2. Nf3 {[%clk 0:03:00.4]}
2... Nc6 {[%clk 0:02:59.3]} 3. Bb5 {[%clk 0:03:00.6]} 3... Nf6 {[%clk
0:02:59.5]} 4. O-O {[%clk 0:02:59.3]} 4... Nxe4 {[%clk 0:02:59.5]} 5. d4 {[%clk
0:02:58.4]} 5... Nd6 {[%clk 0:02:59.4]} 6. Bxc6 {[%clk 0:02:58.7]} 6... dxc6
{[%clk 0:02:59.2]} 7. dxe5 {[%clk 0:02:59.6]} 7... Nf5 {[%clk 0:02:59.4]} 8.
Qxd8+ {[%clk 0:03:00.3]} 8... Kxd8 {[%clk 0:02:59.7]} 9. Rd1+ {[%clk 0:03:01]}
9... Ke8 {[%clk 0:02:57.1]} 10. b3 {[%clk 0:03:01.6]} 10... h6 {[%clk
0:02:42.3]} 11. Bb2 {[%clk 0:03:00.9]} 11... Be6 {[%clk 0:02:41.6]} 12. Nc3
{[%clk 0:02:59.4]} 12... Bb4 {[%clk 0:02:30.6]} 13. Ne2 {[%clk 0:02:58.8]} 13...
Rd8 {[%clk 0:02:25.9]} 14. c4 {[%clk 0:02:54.5]} 14... Be7 {[%clk 0:01:56.2]}
15. h3 {[%clk 0:02:09.5]} 15... h5 {[%clk 0:01:49.8]} 16. Ned4 {[%clk
0:01:41.2]} 16... Nxd4 {[%clk 0:01:42.5]} 17. Bxd4 {[%clk 0:01:30.3]} 17... b6
{[%clk 0:01:14.7]} 18. Be3 {[%clk 0:01:30.3]} 18... Rxd1+ {[%clk 0:01:05.8]} 19.
Rxd1 {[%clk 0:01:29.7]} 19... c5 {[%clk 0:01:06]} 20. Ng5 {[%clk 0:01:13.9]}
20... Bf5 {[%clk 0:01:03.5]} 21. Bf4 {[%clk 0:00:26.9]} 21... h4 {[%clk
0:00:55.9]} 22. e6 {[%clk 0:00:16.5]} 22... f6 {[%clk 0:00:31.3]} 23. Nf7 {[%clk
0:00:05.2]} 23... Rh5 {[%clk 0:00:22.4]} 24. Bxc7 {[%clk 0:00:05.6]} 24... Bxe6
{[%clk 0:00:22.5]} 25. Nd6+ {[%clk 0:00:05.8]} 25... Bxd6 {[%clk 0:00:17.9]} 26.
Bxd6 {[%clk 0:00:05]} 26... Bf5 {[%clk 0:00:16.5]} 27. Bb8 {[%clk 0:00:04.9]}
27... a6 {[%clk 0:00:13.4]} 28. Ba7 {[%clk 0:00:04.8]} 28... b5 {[%clk
0:00:13.6]} 29. Bxc5 {[%clk 0:00:04.7]} 29... bxc4 {[%clk 0:00:12.1]} 30. bxc4
{[%clk 0:00:05.6]} 30... Bc2 {[%clk 0:00:11.4]} 31. Re1+ {[%clk 0:00:05.8]}
31... Kd7 {[%clk 0:00:10.5]} 32. Be3 {[%clk 0:00:06.4]} 32... Ra5 {[%clk
0:00:09]} 33. Re2 {[%clk 0:00:02.5]} 33... Rxa2 {[%clk 0:00:09]} 34. Rd2+ {[%clk
0:00:02.7]} 34... Ke6 {[%clk 0:00:08.7]} 35. Kh2 {[%clk 0:00:03.2]} 35... g5
{[%clk 0:00:08.4]} 36. c5 {[%clk 0:00:03.5]} 36... Bb3 {[%clk 0:00:07.9]} 37.
Rd6+ {[%clk 0:00:03.3]} 37... Ke7 {[%clk 0:00:06.9]} 38. Bd4 {[%clk 0:00:03]}
38... Be6 {[%clk 0:00:07]} 39. Rb6 {[%clk 0:00:02]} 39... Rd2 {[%clk 0:00:04.7]}
40. Be3 {[%clk 0:00:02.1]} 40... Rc2 {[%clk 0:00:02.8]} 41. Rxa6 {[%clk
0:00:02.1]} 41... Kf7 {[%clk 0:00:02.4]} 42. Ra7+ {[%clk 0:00:02.5]} 42... Kg6
{[%clk 0:00:02.3]} 43. Ra6 {[%clk 0:00:03.3]} 43... Kf5 {[%clk 0:00:02.6]} 44.
Rd6 {[%clk 0:00:03.5]} 1-0

[Event "Late-Titled-Tuesday-Blitz-April-23-2024"]
[Site "Chess.com"]
[Date "2024.04.23"]
[Round "9"]
[White "Balla_Tamas"]
[Black "temiksmozg"]
[Result "1/2-1/2"]
[WhiteElo "2560"]
[BlackElo "2710"]
[TimeControl "180+1"]
[EndTime "15:46:51 PDT"]
[Termination "Game drawn by repetition"]

1. e4 {[%clk 0:03:00.9]} 1... c5 {[%clk 0:02:57]} 2. c3 {[%clk 0:03:00.8]} 2...
d5 {[%clk 0:02:56.6]} 3. exd5 {[%clk 0:03:01]} 3... Qxd5 {[%clk 0:02:57.1]} 4.
d4 {[%clk 0:03:01.7]} 4... Nf6 {[%clk 0:02:57.6]} 5. Nf3 {[%clk 0:03:01.8]} 5...
Bg4 {[%clk 0:02:58.2]} 6. Be2 {[%clk 0:03:01.3]} 6... e6 {[%clk 0:02:58.8]} 7.
Be3 {[%clk 0:03:01.1]} 7... cxd4 {[%clk 0:02:57.9]} 8. cxd4 {[%clk 0:03:01.1]}
8... Nc6 {[%clk 0:02:57.7]} 9. Nc3 {[%clk 0:03:01.3]} 9... Qd6 {[%clk
0:02:57.4]} 10. h3 {[%clk 0:03:01.1]} 10... Bh5 {[%clk 0:02:57.2]} 11. O-O
{[%clk 0:03:01.1]} 11... Be7 {[%clk 0:02:57.3]} 12. a3 {[%clk 0:03:01.4]} 12...
O-O {[%clk 0:02:56.8]} 13. Qb3 {[%clk 0:03:01.7]} 13... b6 {[%clk 0:02:55.5]}
14. Rad1 {[%clk 0:03:01.3]} 14... Rac8 {[%clk 0:02:53.2]} 15. d5 {[%clk
0:02:57.3]} 15... Na5 {[%clk 0:02:53.2]} 16. Qb5 {[%clk 0:02:53.8]} 16... e5
{[%clk 0:02:49.4]} 17. Nd2 {[%clk 0:02:30.2]} 17... Bxe2 {[%clk 0:02:47.6]} 18.
Qxe2 {[%clk 0:02:29]} 18... Nxd5 {[%clk 0:02:43]} 19. Nb5 {[%clk 0:01:46.8]}
19... Qb8 {[%clk 0:02:41.6]} 20. Ne4 {[%clk 0:01:43.8]} 20... Nf6 {[%clk
0:02:38.3]} 21. Ned6 {[%clk 0:01:38.3]} 21... Rcd8 {[%clk 0:02:33.8]} 22. Nf5
{[%clk 0:01:37.9]} 22... Bc5 {[%clk 0:02:22.8]} 23. Bg5 {[%clk 0:01:32.9]} 23...
Rxd1 {[%clk 0:02:19.8]} 24. Rxd1 {[%clk 0:01:24.8]} 24... Qc8 {[%clk 0:02:03.2]}
25. Qf3 {[%clk 0:00:54]} 25... e4 {[%clk 0:01:55.7]} 26. Qf4 {[%clk 0:00:47.8]}
26... Nh5 {[%clk 0:01:09.4]} 27. Qg4 {[%clk 0:00:40.2]} 27... g6 {[%clk
0:01:08.4]} 28. Nh6+ {[%clk 0:00:40]} 28... Kg7 {[%clk 0:01:08.9]} 29. Qxe4
{[%clk 0:00:38.3]} 29... Nc6 {[%clk 0:01:03.1]} 30. Ng4 {[%clk 0:00:35.6]} 30...
f5 {[%clk 0:01:00.9]} 31. Bh6+ {[%clk 0:00:35.2]} 31... Kh8 {[%clk 0:00:56.8]}
32. Qc4 {[%clk 0:00:21]} 32... fxg4 {[%clk 0:00:54.1]} 33. hxg4 {[%clk
0:00:20.2]} 33... Nf6 {[%clk 0:00:50.8]} 34. g5 {[%clk 0:00:18.7]} 34... Bxf2+
{[%clk 0:00:35.8]} 35. Kh1 {[%clk 0:00:16.5]} 35... Ne5 {[%clk 0:00:19.6]} 36.
Qxc8 {[%clk 0:00:13.4]} 36... Rxc8 {[%clk 0:00:20.5]} 37. gxf6 {[%clk 0:00:14]}
37... Nf7 {[%clk 0:00:19.5]} 38. Bg7+ {[%clk 0:00:14]} 38... Kg8 {[%clk
0:00:19.6]} 39. Rd7 {[%clk 0:00:10]} 39... Bg3 {[%clk 0:00:18.8]} 40. Nc3 {[%clk
0:00:08.4]} 40... Be5 {[%clk 0:00:16.3]} 41. Rxa7 {[%clk 0:00:05.2]} 41... h6
{[%clk 0:00:13.1]} 42. g4 {[%clk 0:00:04.4]} 42... g5 {[%clk 0:00:13.2]} 43. Nd5
{[%clk 0:00:03.8]} 43... Rc1+ {[%clk 0:00:12]} 44. Kg2 {[%clk 0:00:03.9]} 44...
Rc2+ {[%clk 0:00:11.9]} 45. Kf3 {[%clk 0:00:04]} 45... Rxb2 {[%clk 0:00:12.3]}
46. Ne7+ {[%clk 0:00:03.9]} 46... Kh7 {[%clk 0:00:13]} 47. Nf5 {[%clk
0:00:04.8]} 47... Kg6 {[%clk 0:00:13.1]} 48. Ne7+ {[%clk 0:00:05.4]} 48... Kh7
{[%clk 0:00:13.4]} 49. Nd5 {[%clk 0:00:06]} 49... Kg6 {[%clk 0:00:12.6]} 50.
Ne7+ {[%clk 0:00:06.1]} 50... Kh7 {[%clk 0:00:13.1]} 1/2-1/2